[Event "15th Kesan Open 2017"]
[Site "Kesan"]
[Date "2017.08.13"]
[Round "1.6"]
[White "Guseynov, Alihan"]
[Black "Karatiken, Ertan"]
[Result "1-0"]
[ECO "D30"]
[WhiteElo "2399"]
[BlackElo "1428"]
[Annotator "ChessBase"]
[PlyCount "79"]
[EventCountry "TUR"]
[SourceTitle "playchess.com"]
[Source "ChessBase"]
[SourceQuality "1"]
[TimeControl "5400+30"]

1. d4 {[%emt 0:00:30]} d5 {[%emt 0:01:00]} 2. c4 {[%emt 0:00:00]} c6 {[%emt 0:00:30]} 3. Nf3 {[%emt 0:00:00]} Nf6 {[%emt 0:00:30]} 4. e3 {[%emt 0:00:30]} e6 {[%emt 0:00:30]} 5. b3 {[%emt 0:00:00]} Bd6 {[%emt 0:01:30]} 6. Bb2 {[%emt 0:00:00]} O-O {[%emt 0:01:30]} 7. Bd3 {[%emt 0:00:30]} Nbd7 {[%emt 0:01:30]} 8. O-O {[%emt 0:00:30]} dxc4 {[%emt 0:00:30]} 9. bxc4 {[%emt 0:06:30]} b6 {[%emt 0:02:30]} 10. e4 {[%emt 0:00:30]} Bb8 {[%emt 0:04:30]} 11. e5 {[%emt 0:00:30]} Ne8 {[%emt 0:02:30]} 12. Ba3 {[%emt 0:01:30]} c5 {[%emt 0:02:30]} 13. dxc5 {[%emt 0:03:30]} bxc5 {[%emt 0:00:30]} 14. Be4 {[%emt 0:02:30]} Nc7 {[%emt 0:05:30]} 15. Nc3 {[%emt 0:00:00]} f5 {[%emt 0:03:30]} 16. exf6 {[%emt 0:05:00]} Qxf6 {[%emt 0:04:30]} 17. Qc2 {[%emt 0:00:30]} g6 {[%emt 0:03:30]} 18. Bb2 {[%emt 0:01:30]} Qe7 {[%emt 0:02:30]} 19. Bxa8 {[%emt 0:03:30]} Nxa8 {[%emt 0:00:30]} 20. Ne4 {[%emt 0:00:00]} Bb7 {[%emt 0:04:30]} 21. Rfe1 {[%emt 0:01:00]} e5 {[%emt 0:07:30]} 22. Rad1 {[%emt 0:01:30]} Nab6 {[%emt 0:02:30]} 23. Nfd2 {[%emt 0:09:30]} Qf7 {[%emt 0:06:30]} 24. Re3 {[%emt 0:02:30]} Bxe4 {[%emt 0:06:30]} 25. Nxe4 {[%emt 0:00:30]} Qxc4 {[%emt 0:06:30]} 26. Qxc4+ {[%emt 0:00:00]} Nxc4 {[%emt 0:00:30]} 27. Rxd7 {[%emt 0:00:00]} Nxb2 {[%emt 0:01:30]} 28. Rh3 {[%emt 0:00:30]} Rf7 {[%emt 0:01:30]} 29. Rxf7 {[%emt 0:00:30]} Kxf7 {[%emt 0:00:30]} 30. Rb3 {[%emt 0:00:30]} Ke6 {[%emt 0:02:30]} 31. Nxc5+ {[%emt 0:00:00]} Kd5 {[%emt 0:00:30]} 32. Rxb8 {[%emt 0:00:00]} Nc4 {[%emt 0:00:30]} 33. Nd3 {[%emt 0:00:30]} Kd4 {[%emt 0:00:30]} 34. Rd8+ {[%emt 0:00:30]} Ke4 {[%emt 0:00:30]} 35. Nc5+ {[%emt 0:00:00]} Kf5 {[%emt 0:00:30]} 36. Rf8+ {[%emt 0:00:00]} Kg5 {[%emt 0:00:30]} 37. Ne6+ {[%emt 0:00:30]} Kh5 {[%emt 0:00:30]} 38. h3 {[%emt 0:00:30]} e4 {[%emt 0:00:30]} 39. g4+ {[%emt 0:00:30]} Kh6 {[%emt 0:00:30]} 40. Rf7 {[%emt 0:00:00]} 1-0

[Event "15th Kesan Open 2017"]
[Site "Kesan"]
[Date "2017.08.14"]
[Round "2.9"]
[White "Kavukcu, Mustafa"]
[Black "Rahmanov, Shahriyar"]
[Result "0-1"]
[ECO "B08"]
[WhiteElo "1663"]
[BlackElo "2327"]
[Annotator "RC"]
[PlyCount "56"]
[EventCountry "TUR"]
[SourceTitle "playchess.com"]
[Source "ChessBase"]
[SourceQuality "1"]
[TimeControl "5400+30"]

1. e4 {[%emt 0:00:30]} g6 {[%emt 0:01:00]} 2. d4 {[%emt 0:00:30]} Bg7 {[%emt 0:00:30]} 3. Nc3 {[%emt 0:00:30]} d6 {[%emt 0:00:30]} 4. Bc4 {[%emt 0:00:00]} c6 {[%emt 0:00:30]} 5. Nf3 {[%emt 0:01:00]} Nf6 {[%emt 0:00:30]} 6. O-O {[%emt 0:02:30]} O-O {[%emt 0:00:30]} 7. a4 {[%emt 0:03:30]} Bg4 {[%emt 0:07:30]} 8. h3 {[%emt 0:07:30]} Bxf3 {[%emt 0:01:30]} 9. Qxf3 {[%emt 0:00:30]} Nbd7 {[%emt 0:00:30]} 10. Be3 {[%emt 0:06:30]} e5 {[%emt 0:00:30]} 11. Rad1 {[%emt 0:02:30]} Qe7 {[%emt 0:00:30]} 12. Rfe1 {[%emt 0:05:30]} Kh8 {[%emt 0:06:30]} 13. Qe2 {[%emt 0:04:30]} a6 {[%emt 0:10:30]} 14. Bb3 {[%emt 0:03:30]} b5 {[%emt 0:16:30]} 15. axb5 {[%emt 0:16:30]} axb5 {[%emt 0:01:30]} 16. dxe5 {[%emt 0:09:30]} dxe5 {[%emt 0:02:30]} 17. Bg5 {[%emt 0:02:30]} h6 {[%emt 0:09:30]} 18. Bxf6 {[%emt 0:01:30]} Nxf6 {[%emt 0:00:30]} 19. Ra1 {[%emt 0:01:30]} Nd7 {[%emt 0:01:30]} 20. Qe3 {[%emt 0:07:30]} Rxa1 {[%emt 0:07:30]} 21. Rxa1 {[%emt 0:00:30]} Nc5 {[%emt 0:00:00]} 22. Ne2 {[%emt 0:00:30]} Kh7 {[%emt 0:10:00]} 23. Nc1 {[%emt 0:06:17]} Rd8 {[%emt 0:10:18]} 24. Nd3 {[%emt 0:09:04]} Rxd3 {[%emt 0:02:41]} 25. cxd3 {[%emt 0:00:21]} Nxb3 {[%emt 0:00:04]} 26. Ra7 {[%emt 0:00:08]} Qf6 {[%emt 0:02:12]} 27. Qb6 {[%emt 0:01:32]} Bf8 {[%emt 0:01:21]} 28. Qc7 {[%emt 0:02:26]} Kg7 {[%emt 0:00:23]} 0-1

[Event "15th Kesan Open 2017"]
[Site "Kesan"]
[Date "2017.08.14"]
[Round "3.7"]
[White "Donmez, Taha Mert"]
[Black "Markidis, Konstantinos"]
[Result "0-1"]
[ECO "E14"]
[WhiteElo "1918"]
[BlackElo "2350"]
[Annotator "NA"]
[PlyCount "104"]
[EventCountry "TUR"]
[SourceTitle "playchess.com"]
[Source "ChessBase"]
[SourceQuality "1"]
[TimeControl "5400+30"]

1. c4 {[%emt 0:00:30]} e6 {[%emt 0:01:00]} 2. Nf3 {[%emt 0:00:30]} Nf6 {[%emt 0:01:30]} 3. e3 {[%emt 0:02:30]} b6 {[%emt 0:03:30]} 4. d4 {[%emt 0:02:30]} Bb7 {[%emt 0:01:30]} 5. Bd3 {[%emt 0:01:30]} c5 {[%emt 0:02:30]} 6. O-O {[%emt 0:02:30]} Be7 {[%emt 0:03:30]} 7. Nc3 {[%emt 0:03:30]} a6 {[%emt 0:00:30]} 8. b3 {[%emt 0:01:30]} O-O {[%emt 0:04:30]} 9. Bb2 {[%emt 0:01:30]} cxd4 {[%emt 0:00:30]} 10. exd4 {[%emt 0:01:30]} d5 {[%emt 0:01:30]} 11. Qe2 {[%emt 0:04:30]} Re8 {[%emt 0:07:30]} 12. Rfe1 {[%emt 0:09:30]} Nc6 {[%emt 0:08:30]} 13. Rad1 {[%emt 0:01:30]} g6 {[%emt 0:17:30]} 14. Qe3 {[%emt 0:17:30]} Rc8 {[%emt 0:12:30]} 15. Ng5 {[%emt 0:24:30]} ({White should play} 15. Qd2 $11) 15... Ng4 {[%emt 0:17:11]} 16. Qf4 {[%emt 0:02:30]} Bxg5 {[%emt 0:00:40]} 17. Qxg4 {[%emt 0:00:30]} Nb4 {[%emt 0:03:22]} 18. Bf1 {[%emt 0:06:41]} h5 {[%emt 0:03:12]} 19. Qg3 {[%emt 0:03:51]} Bh4 {[%emt 0:02:06]} 20. Qf4 {[%emt 0:01:45]} Bg5 {[%emt 0:02:45]} 21. Qg3 {[%emt 0:00:02]} Bh4 {[%emt 0:01:23]} 22. Qf4 {[%emt 0:00:03]} Qf6 {[%emt 0:00:16]} 23. Qxf6 {[%emt 0:02:43]} Bxf6 {[%emt 0:00:30]} 24. cxd5 {[%emt 0:00:22]} Nxd5 {[%emt 0:01:03]} 25. Nxd5 {[%emt 0:00:39]} Bxd5 $15 {[%emt 0:00:10]} 26. Bxa6 {[%emt 0:05:23]} Ra8 {[%emt 0:00:32]} 27. Bc4 {[%emt 0:00:46]} Bxc4 {[%emt 0:00:53]} 28. bxc4 {[%emt 0:00:04]} Rxa2 {[%emt 0:00:00]} 29. Bc1 {[%emt 0:02:54]} Rc2 {[%emt 0:00:08]} 30. d5 {[%emt 0:00:36]} Rxc4 {[%emt 0:00:25]} 31. d6 {[%emt 0:00:18]} Rd8 {[%emt 0:01:30]} 32. Be3 {[%emt 0:00:26]} Rc6 {[%emt 0:00:09]} 33. d7 {[%emt 0:00:20]} Kf8 {[%emt 0:00:23]} 34. Bh6+ {[%emt 0:00:35]} Ke7 {[%emt 0:00:12]} 35. Bc1 {[%emt 0:00:23]} Rxd7 {[%emt 0:00:05]} 36. Ba3+ {[%emt 0:00:13]} Ke8 {[%emt 0:00:32]} 37. Rb1 {[%emt 0:00:19]} Bd4 {[%emt 0:00:28]} 38. Re2 {[%emt 0:00:15]} Ra7 {[%emt 0:02:36]} 39. Bb4 {[%emt 0:00:50]} Ra1 {[%emt 0:01:12]} 40. Rxa1 {[%emt 0:00:09]} Bxa1 {[%emt 0:00:03]} 41. g3 {[%emt 0:00:04]} Bd4 {[%emt 0:00:19]} 42. Kg2 {[%emt 0:00:10]} Rc4 {[%emt 0:00:11]} 43. Be1 {[%emt 0:01:12]} b5 {[%emt 0:00:45]} 44. Ra2 {[%emt 0:00:00]} Ra4 {[%emt 0:00:00]} 45. Rc2 {[%emt 0:00:09]} Kd7 {[%emt 0:00:00]} 46. Bd2 {[%emt 0:01:13]} e5 {[%emt 0:00:14]} 47. Kf3 {[%emt 0:00:19]} b4 {[%emt 0:02:22]} 48. Rc4 {[%emt 0:00:55]} Ra3+ {[%emt 0:00:12]} 49. Be3 {[%emt 0:00:10]} b3 {[%emt 0:00:30]} 50. Ke4 {[%emt 0:01:10]} b2 {[%emt 0:00:22]} 51. Rb4 {[%emt 0:00:04]} Bc3 {[%emt 0:00:08]} 52. Rb7+ {[%emt 0:00:13]} Kc8 {[%emt 0:00:16]} 0-1

[Event "15th Kesan Open 2017"]
[Site "Kesan"]
[Date "2017.08.14"]
[Round "3.8"]
[White "Rahmanov, Shahriyar"]
[Black "Guven, Oguz Kagan"]
[Result "1-0"]
[ECO "E46"]
[WhiteElo "2327"]
[BlackElo "1878"]
[Annotator "NA"]
[PlyCount "89"]
[EventCountry "TUR"]
[SourceTitle "playchess.com"]
[Source "ChessBase"]
[SourceQuality "1"]
[TimeControl "5400+30"]

1. d4 {[%emt 0:00:30]} Nf6 {[%emt 0:01:00]} 2. c4 {[%emt 0:00:30]} e6 {[%emt 0:00:30]} 3. Nc3 {[%emt 0:00:30]} Bb4 {[%emt 0:00:30]} 4. e3 {[%emt 0:00:30]} O-O {[%emt 0:00:30]} 5. Nge2 {[%emt 0:00:30]} d5 {[%emt 0:00:30]} 6. a3 {[%emt 0:00:30]} Be7 {[%emt 0:00:30]} 7. cxd5 {[%emt 0:11:30]} exd5 {[%emt 0:00:00]} 8. g3 {[%emt 0:00:30]} c6 {[%emt 0:13:00]} 9. Bg2 {[%emt 0:00:30]} Bf5 {[%emt 0:00:30]} 10. O-O {[%emt 0:00:30]} Re8 {[%emt 0:03:30]} 11. b4 {[%emt 0:09:30] E46: Nimzo-Indian: Rubinstein: 4 e3 0-0 5 Ne2 without early Bd3} ({White should play} 11. f3 $11 c5 12. g4 Be6 13. g5 Nh5 14. f4 g6 15. dxc5 Bxc5 16. Nxd5 Bxd5 17. Qxd5 Qxd5 18. Bxd5 Nc6 {½-½ (37) Cramling,P (2523)-Zhao,X (2490) Nalchik 2010}) 11... Nbd7 {[%emt 0:05:30]} 12. f3 {[%emt 0:18:30]} Bd6 {[%emt 0:03:30]} 13. g4 $146 {[%emt 0:04:30]} ({Predecessor:} 13. Nf4 h6 14. Nd3 Re7 15. Nf2 Bg6 16. e4 dxe4 17. fxe4 Qb6 18. Na4 Qb5 {½-½ (28) Schmidt,J (2271)-Weiss,O (2153) Germany 2003}) 13... Bg6 {[%emt 0:00:30]} 14. Nf4 {[%emt 0:16:30]} Nb6 {[%emt 0:07:30]} (14... a5 $5 {[%cal Ra5b4]} 15. b5 Qc7 $15) 15. Nxg6 {[%emt 0:04:30]} hxg6 {[%emt 0:00:30]} 16. e4 {[%emt 0:00:30]} dxe4 {[%emt 0:00:30]} 17. fxe4 {[%emt 0:00:30]} Nh7 {[%emt 0:05:30]} 18. Qb3 {[%emt 0:16:45]} Rf8 {[%emt 0:02:30]} 19. Be3 {[%emt 0:09:15]} Be7 {[%emt 0:02:30]} 20. Kh1 {[%emt 0:01:30]} (20. a4 $16) 20... Bg5 {[%emt 0:01:30]} 21. Bg1 {[%emt 0:00:01]} Nf6 {[%emt 0:14:30]} 22. h3 {[%emt 0:00:02]} Qd7 {[%emt 0:04:30]} 23. Rad1 {[%emt 0:00:01]} Rad8 {[%emt 0:01:30]} 24. a4 {[%emt 0:00:15]} Nc8 {[%emt 0:03:30]} 25. d5 {[%emt 0:00:06]} cxd5 {[%emt 0:00:30] [#]} 26. e5 $1 {[%emt 0:00:52]} ({Weaker is} 26. Nxd5 Nxd5 27. b5 (27. Rxd5 Qe6 $14) (27. exd5 Nd6 $14) 27... Qe7 $14) ({Inferior is} 26. exd5 Rfe8 $11) 26... Nh7 {[%emt 0:08:30]} 27. Bxd5 {[%emt 0:00:01]} ({Resist} 27. Nxd5 Qe6 $18) ({Don't play} 27. Rxd5 $6 Qe8 $18) 27... Qe8 {[%emt 0:00:30]} 28. Bc5 {[%emt 0:02:46]} ({Not} 28. Bxb7 Rxd1 29. Rxd1 Qxe5 $16) 28... Be7 {[%emt 0:03:13]} 29. Bg1 {[%emt 0:00:22]} Nb6 {[%emt 0:01:59]} 30. Bxb7 {[%emt 0:00:25]} Rxd1 {[%emt 0:00:28]} 31. Rxd1 {[%emt 0:00:26]} Qb8 {[%emt 0:00:10] [#]} 32. Bg2 $1 {[%emt 0:00:43]} Qxe5 {[%emt 0:00:27]} 33. a5 {[%emt 0:00:58]} Nc8 {[%emt 0:00:00]} 34. Bh2 {[%emt 0:00:00]} Qe3 {[%emt 0:00:23]} 35. Qc4 {[%emt 0:00:28]} Nf6 $18 {[%emt 0:03:04]} 36. b5 {[%emt 0:00:01]} Qc5 {[%emt 0:02:46]} 37. Qxc5 {[%emt 0:01:26]} Bxc5 {[%emt 0:00:01]} 38. Ne4 {[%emt 0:00:00]} Nxe4 {[%emt 0:01:37]} 39. Bxe4 {[%emt 0:00:21]} f5 {[%emt 0:00:08]} 40. Bb7 {[%emt 0:01:00]} Ne7 {[%emt 0:00:41]} 41. Bg1 {[%emt 0:00:54]} Bxg1 {[%emt 0:00:10]} 42. Kxg1 {[%emt 0:00:02]} Kf7 {[%emt 0:00:34]} 43. Rc1 {[%emt 0:00:49]} Rb8 {[%emt 0:01:04]} 44. a6 {[%emt 0:00:19]} Ke6 {[%emt 0:00:14]} 45. b6 {[%emt 0:00:12]} 1-0

[Event "15th Kesan Open 2017"]
[Site "Kesan"]
[Date "2017.08.14"]
[Round "3.9"]
[White "Dimitrov, Atanas"]
[Black "Onem, Cem"]
[Result "1/2-1/2"]
[ECO "E18"]
[WhiteElo "2317"]
[BlackElo "1819"]
[Annotator "ChessBase"]
[PlyCount "84"]
[EventCountry "TUR"]
[SourceTitle "playchess.com"]
[Source "ChessBase"]
[SourceQuality "1"]
[TimeControl "5400+30"]

1. d4 {[%emt 0:00:30]} d5 {[%emt 0:01:00]} 2. c4 {[%emt 0:00:30]} e6 {[%emt 0:00:30]} 3. Nf3 {[%emt 0:00:30]} Nf6 {[%emt 0:00:30]} 4. g3 {[%emt 0:02:30]} Be7 {[%emt 0:00:30]} 5. Bg2 {[%emt 0:00:30]} O-O {[%emt 0:00:00]} 6. O-O {[%emt 0:01:30]} b6 {[%emt 0:00:00]} 7. Nc3 {[%emt 0:00:00]} Bb7 {[%emt 0:00:30]} 8. Ne5 {[%emt 0:00:00]} Nbd7 {[%emt 0:00:00]} 9. Qa4 {[%emt 0:00:00]} Nxe5 {[%emt 0:06:00]} 10. dxe5 {[%emt 0:01:00]} Ne4 {[%emt 0:00:00]} 11. Nxe4 {[%emt 0:00:30]} dxe4 {[%emt 0:00:00]} 12. Qc2 {[%emt 0:00:00]} Qd4 {[%emt 0:02:30]} 13. Bf4 {[%emt 0:00:00]} g5 {[%emt 0:01:30]} 14. Rad1 {[%emt 0:00:30]} Qc5 {[%emt 0:00:30]} 15. b4 {[%emt 0:00:30]} Qxb4 {[%emt 0:00:30]} 16. Bd2 {[%emt 0:00:00]} Qc5 {[%emt 0:00:30]} 17. Bxe4 {[%emt 0:00:00]} Bxe4 {[%emt 0:04:30]} 18. Qxe4 {[%emt 0:00:00]} Rad8 {[%emt 0:00:30]} 19. Be3 {[%emt 0:01:00]} Qa5 {[%emt 0:00:30]} 20. h4 {[%emt 0:02:30]} Qa4 {[%emt 0:04:30]} 21. Rxd8 {[%emt 0:16:30]} Rxd8 {[%emt 0:00:00]} 22. Bxg5 {[%emt 0:00:30]} Bxg5 {[%emt 0:00:00]} 23. Qg4 {[%emt 0:00:00]} Rd1 {[%emt 0:09:30]} 24. Qxg5+ {[%emt 0:02:00]} Kf8 {[%emt 0:00:30]} 25. h5 {[%emt 0:08:30]} Qc2 {[%emt 0:11:30]} 26. Rxd1 {[%emt 0:05:30]} Qxd1+ {[%emt 0:00:00]} 27. Kg2 {[%emt 0:00:30]} Qc2 {[%emt 0:05:00]} 28. Qd8+ {[%emt 0:39:50]} Kg7 {[%emt 0:00:30]} 29. Qg5+ {[%emt 0:03:19]} Kf8 {[%emt 0:00:30]} 30. Qd8+ {[%emt 0:00:04]} Kg7 {[%emt 0:00:30]} 31. Qf6+ {[%emt 0:00:03]} Kf8 {[%emt 0:00:00]} 32. a3 {[%emt 0:00:05]} Ke8 {[%emt 0:00:00]} 33. h6 {[%emt 0:04:24]} Qe4+ {[%emt 0:06:30]} 34. Kg1 {[%emt 0:00:24]} Qb1+ {[%emt 0:00:00]} 35. Kg2 {[%emt 0:00:28]} Qe4+ {[%emt 0:00:00]} 36. Kg1 {[%emt 0:00:40]} Qb1+ {[%emt 0:00:30]} 37. Kh2 {[%emt 0:00:01]} Qe4 {[%emt 0:00:00]} 38. e3 {[%emt 0:01:59]} a6 {[%emt 0:07:00]} 39. Qh8+ {[%emt 0:07:26]} Ke7 {[%emt 0:00:30]} 40. Qf6+ {[%emt 0:00:01]} Ke8 {[%emt 0:00:30]} 41. Qh8+ {[%emt 0:04:30]} Ke7 {[%emt 0:00:30]} 42. Qf6+ {[%emt 0:00:44]} Ke8 {[%emt 0:01:30]} 1/2-1/2

[Event "15th Kesan Open 2017"]
[Site "Kesan"]
[Date "2017.08.14"]
[Round "3.10"]
[White "Korkmaz, Turhan"]
[Black "Buyukasik, Diyap"]
[Result "0-1"]
[ECO "B92"]
[WhiteElo "1867"]
[BlackElo "2285"]
[Annotator "NA"]
[PlyCount "108"]
[EventCountry "TUR"]
[SourceTitle "playchess.com"]
[Source "ChessBase"]
[SourceQuality "1"]
[TimeControl "5400+30"]

1. e4 {[%emt 0:00:30]} c5 {[%emt 0:01:00]} 2. Nf3 {[%emt 0:00:30]} d6 {[%emt 0:00:30]} 3. d4 {[%emt 0:00:30]} cxd4 {[%emt 0:00:30]} 4. Nxd4 {[%emt 0:00:30]} Nf6 {[%emt 0:00:30]} 5. Nc3 {[%emt 0:00:30]} a6 {[%emt 0:00:00]} 6. Be2 {[%emt 0:04:30]} e5 {[%emt 0:00:00]} 7. Nb3 {[%emt 0:00:30]} Be6 {[%emt 0:00:30]} 8. O-O {[%emt 0:01:30]} Be7 {[%emt 0:00:30]} 9. a4 {[%emt 0:01:30]} O-O {[%emt 0:00:30]} 10. Kh1 {[%emt 0:06:30] B92: Sicilian Najdorf: 6 Be2} (10. Bf3 Nbd7 11. a5 Qc7 12. Re1 Rfd8 13. Be3 h6 14. h3 Rac8 15. Nd2 Nh7 16. Nf1 Bg5 17. Re2 Bxe3 18. Nxe3 {½-½ (34) Mamedov,N (2597)-Yilmaz,M (2582) Kocaeli 2015}) 10... Nbd7 {[%emt 0:06:30]} 11. Be3 {[%emt 0:01:30]} Rc8 {[%emt 0:01:30]} 12. a5 {[%emt 0:03:30]} Qc7 {[%emt 0:00:30]} 13. h3 {[%emt 0:02:30]} Qc6 {[%emt 0:06:30]} 14. Bf3 {[%emt 0:15:30]} Rfd8 {[%emt 0:02:30]} 15. g4 $146 {[%emt 0:05:30]} ({Predecessor:} 15. Qc1 d5 16. exd5 Bxd5 17. Nxd5 Nxd5 {1-0 (34) Mezioud,R-Abulhul,T (2027) Cairo 2009}) 15... Nf8 {[%emt 0:11:30]} 16. Bb6 {[%emt 0:02:30]} Re8 {[%emt 0:02:30]} 17. Be3 {[%emt 0:11:30]} Red8 {[%emt 0:03:30]} 18. Bb6 {[%emt 0:00:30]} Rd7 {[%emt 0:01:30]} 19. Be3 {[%emt 0:01:30]} (19. g5 $15 Ne8 20. Rg1) 19... Ng6 {[%emt 0:04:30]} (19... d5 $17 20. exd5 Nxd5 21. Bxd5 Bxd5+ 22. Nxd5 Rxd5) 20. g5 {[%emt 0:00:30]} Ne8 {[%emt 0:01:30]} 21. Nd5 {[%emt 0:02:30]} Bd8 {[%emt 0:07:30]} 22. Bg4 {[%emt 0:09:30]} Qxc2 {[%emt 0:10:30]} 23. Bxe6 {[%emt 0:01:30]} Qxd1 {[%emt 0:12:30]} 24. Bxf7+ {[%emt 0:00:30]} Rxf7 {[%emt 0:00:00]} 25. Rfxd1 {[%emt 0:00:30]} Rf3 {[%emt 0:03:00]} 26. Rac1 {[%emt 0:02:30]} Rxc1 {[%emt 0:02:30]} 27. Rxc1 {[%emt 0:00:30]} Bxg5 $1 {[%emt 0:02:56]} ({Not} 27... Rxh3+ $2 28. Kg2 $16) 28. Nd2 {[%emt 0:02:30]} (28. Rc8 $1 $11 Bxe3 29. Rxe8+ Kf7 30. Rb8 Bxf2 31. Rxb7+ Kg8 32. Rb8+ Rf8 33. Rxf8+ Kxf8 34. Kg2) 28... Bxe3 {[%emt 0:00:52]} 29. fxe3 {[%emt 0:01:30]} Rf2 {[%emt 0:00:49]} 30. Nc4 {[%emt 0:01:30]} Nh4 {[%emt 0:00:34]} 31. Kg1 {[%emt 0:01:06]} Rg2+ {[%emt 0:01:45]} 32. Kh1 {[%emt 0:00:12]} Rf2 {[%emt 0:01:58]} 33. Kg1 {[%emt 0:00:12]} Rg2+ {[%emt 0:00:00]} 34. Kh1 {[%emt 0:00:30]} Re2 {[%emt 0:00:00]} 35. Rf1 {[%emt 0:00:30]} h5 {[%emt 0:00:00]} 36. Ne7+ {[%emt 0:00:50]} Kh7 {[%emt 0:00:00]} 37. Nf5 {[%emt 0:02:53]} Nxf5 {[%emt 0:00:46]} 38. exf5 {[%emt 0:00:31]} Rc2 {[%emt 0:02:41]} 39. b3 {[%emt 0:00:43]} Rc3 {[%emt 0:00:05]} 40. Rb1 {[%emt 0:03:30]} e4 {[%emt 0:00:33]} 41. Kg2 {[%emt 0:00:34]} h4 {[%emt 0:00:34]} 42. Kf2 {[%emt 0:01:05]} (42. Rd1 $142) 42... Kh6 {[%emt 0:00:55]} 43. Ke2 {[%emt 0:01:45]} Rc2+ {[%emt 0:00:38]} 44. Nd2 {[%emt 0:00:17]} d5 {[%emt 0:00:55]} 45. Rg1 {[%emt 0:00:35]} Nf6 {[%emt 0:00:08]} 46. Rb1 {[%emt 0:00:52]} Ra2 $19 {[%emt 0:00:52]} 47. b4 {[%emt 0:00:27]} Nh5 {[%emt 0:00:05]} 48. Kd1 {[%emt 0:01:01]} Ng3 {[%emt 0:00:22]} 49. Nb3 {[%emt 0:02:08]} Nxf5 {[%emt 0:01:05]} 50. Nc5 {[%emt 0:00:30]} Nxe3+ {[%emt 0:00:00]} 51. Ke1 {[%emt 0:00:00]} Rh2 {[%emt 0:00:44]} 52. Rc1 {[%emt 0:00:05]} d4 {[%emt 0:00:55]} 53. Nxe4 {[%emt 0:03:06]} d3 {[%emt 0:00:05]} 54. Nf2 {[%emt 0:00:47]} Rxf2 {[%emt 0:00:15]} 0-1

[Event "15th Kesan Open 2017"]
[Site "Kesan"]
[Date "2017.08.15"]
[Round "4.9"]
[White "Ozsakallioglu, Akin"]
[Black "Dimitrov, Atanas"]
[Result "0-1"]
[ECO "B33"]
[WhiteElo "1849"]
[BlackElo "2317"]
[Annotator "ChessBase"]
[PlyCount "144"]
[EventCountry "TUR"]
[SourceTitle "playchess.com"]
[Source "ChessBase"]
[SourceQuality "1"]
[TimeControl "5400+30"]

1. e4 {[%emt 0:00:30]} c5 {[%emt 0:01:00]} 2. Nf3 {[%emt 0:00:30]} e6 {[%emt 0:00:30]} 3. d4 {[%emt 0:00:30]} cxd4 {[%emt 0:00:30]} 4. Nxd4 {[%emt 0:00:30]} Nf6 {[%emt 0:00:30]} 5. f3 {[%emt 0:00:30]} Nc6 {[%emt 0:00:30]} 6. c4 {[%emt 0:00:00]} Bc5 {[%emt 0:22:30]} 7. Nxc6 {[%emt 0:04:00]} dxc6 {[%emt 0:00:30]} 8. Qxd8+ {[%emt 0:04:30]} Kxd8 {[%emt 0:00:30]} 9. Nc3 {[%emt 0:01:30]} e5 {[%emt 0:00:00]} 10. Bd3 {[%emt 0:03:30]} Nd7 {[%emt 0:07:00]} 11. b3 {[%emt 0:03:30]} Bd4 {[%emt 0:04:30]} 12. Bb2 {[%emt 0:00:30]} Nc5 {[%emt 0:00:00]} 13. O-O-O {[%emt 0:00:00]} Kc7 {[%emt 0:05:00]} 14. Kc2 {[%emt 0:06:00]} Ne6 {[%emt 0:10:30]} 15. Ne2 {[%emt 0:02:30]} Bxb2 {[%emt 0:00:30]} 16. Kxb2 {[%emt 0:00:30]} a5 {[%emt 0:05:30]} 17. g3 {[%emt 0:02:30]} Nc5 {[%emt 0:02:30]} 18. Bc2 {[%emt 0:01:30]} Bh3 {[%emt 0:01:30]} 19. Rhe1 {[%emt 0:02:30]} h5 {[%emt 0:04:30]} 20. Ng1 {[%emt 0:01:30]} Bd7 {[%emt 0:00:30]} 21. Rd2 {[%emt 0:04:30]} h4 {[%emt 0:03:30]} 22. f4 {[%emt 0:02:30]} hxg3 {[%emt 0:00:30]} 23. hxg3 {[%emt 0:00:00]} exf4 {[%emt 0:12:15]} 24. gxf4 {[%emt 0:01:00]} Rh4 {[%emt 0:00:03]} 25. f5 {[%emt 0:05:30]} g6 {[%emt 0:10:31]} 26. Nf3 {[%emt 0:03:30]} Rf4 {[%emt 0:00:45]} 27. Ne5 {[%emt 0:00:30]} Re8 {[%emt 0:01:54]} 28. Nxd7 {[%emt 0:01:30]} Nxd7 {[%emt 0:00:03]} 29. fxg6 {[%emt 0:00:30]} fxg6 {[%emt 0:00:01]} 30. Rg2 {[%emt 0:00:00]} Ne5 {[%emt 0:00:10]} 31. Rh1 {[%emt 0:01:00]} Re7 {[%emt 0:00:39]} 32. Rh8 {[%emt 0:00:30]} Rff7 {[%emt 0:03:21]} 33. Rg8 {[%emt 0:01:30]} Rg7 {[%emt 0:00:26]} 34. Rxg7 {[%emt 0:00:30]} Rxg7 {[%emt 0:00:02]} 35. Kc3 {[%emt 0:01:30]} c5 {[%emt 0:00:37]} 36. Kd2 {[%emt 0:01:30]} Rf7 {[%emt 0:00:25]} 37. Ke2 {[%emt 0:01:30]} Kd6 {[%emt 0:02:42]} 38. Bd1 {[%emt 0:00:30]} Ke6 {[%emt 0:00:39]} 39. Ke3 {[%emt 0:00:30]} Rf1 {[%emt 0:00:27]} 40. Ke2 {[%emt 0:00:30]} Rh1 {[%emt 0:00:30]} 41. a4 {[%emt 0:00:30]} Kf6 {[%emt 0:00:30]} 42. Bc2 {[%emt 0:00:30]} Rh3 {[%emt 0:00:03]} 43. Kf1 {[%emt 0:06:30]} Rf3+ {[%emt 0:01:24]} 44. Ke2 {[%emt 0:01:30]} Rh3 {[%emt 0:00:01]} 45. Kf1 {[%emt 0:00:00]} b6 {[%emt 0:00:27]} 46. Rd2 {[%emt 0:00:00]} Ke6 {[%emt 0:01:07]} 47. Rg2 {[%emt 0:00:30]} Rc3 {[%emt 0:00:34]} 48. Bd1 {[%emt 0:01:30]} Kf6 {[%emt 0:00:01]} 49. Rd2 {[%emt 0:01:30]} Rd3 {[%emt 0:00:35]} 50. Rf2+ {[%emt 0:00:30]} Kg5 {[%emt 0:00:32]} 51. Ke2 {[%emt 0:00:30]} Rg3 {[%emt 0:00:28]} 52. Rf8 {[%emt 0:00:30]} Nc6 {[%emt 0:01:29]} 53. Kf2 {[%emt 0:00:30]} Rd3 {[%emt 0:00:23]} 54. Ke2 {[%emt 0:00:30]} Rh3 {[%emt 0:00:14]} 55. e5 {[%emt 0:00:30]} Nxe5 {[%emt 0:00:17]} 56. Rb8 {[%emt 0:00:30]} Kf4 {[%emt 0:00:26]} 57. Rxb6 {[%emt 0:01:30]} Rh2+ {[%emt 0:00:09]} 58. Kf1 {[%emt 0:00:30]} Rh1+ {[%emt 0:00:09]} 59. Ke2 {[%emt 0:00:30]} Rh2+ {[%emt 0:00:02]} 60. Kf1 {[%emt 0:00:00]} Ke3 {[%emt 0:01:18]} 61. Re6 {[%emt 0:00:00]} Kd4 {[%emt 0:00:29]} 62. Rd6+ {[%emt 0:00:30]} Ke4 {[%emt 0:00:57]} 63. Rd5 {[%emt 0:00:30]} Rh1+ {[%emt 0:00:20]} 64. Ke2 {[%emt 0:00:30]} Rh2+ {[%emt 0:00:08]} 65. Kf1 {[%emt 0:00:30]} Nd3 {[%emt 0:01:37]} 66. Kg1 {[%emt 0:01:30]} Rb2 {[%emt 0:00:34]} 67. Bg4 {[%emt 0:01:30]} Rxb3 {[%emt 0:00:57]} 68. Bd7 {[%emt 0:00:00]} Rb6 {[%emt 0:00:38]} 69. Bb5 {[%emt 0:01:00]} Rf6 {[%emt 0:00:35]} 70. Rd7 {[%emt 0:00:30]} Ne5 {[%emt 0:00:30]} 71. Ra7 {[%emt 0:01:30]} Kf3 {[%emt 0:00:33]} 72. Rxa5 {[%emt 0:00:30]} Rd6 {[%emt 0:00:10]} 0-1